bitfinex/quotes_SOLUSD_20250809
["timestamp","ask_amount","ask_price","bid_price","bid_amount"]
[1754754865808,75.78912727,180.28,180.27,0.78]
[1754754865809,63.76046646,180.28,180.27,0.78]
[1754754866007,60.09794938,180.28,180.27,0.78]
[1754754866513,65.64487638,180.28,180.27,0.78]
[1754754866712,65.64487638,180.28,180.27,0.06]
[1754754867203,65.64487638,180.28,180.27,0.78]
[1754754868191,65.64487638,180.28,180.27,0.06]
[1754754869409,63.49138962,180.28,180.27,0.06]
[1754754869610,69.30312343,180.28,180.27,0.06]
[1754754869814,69.30312343,180.28,180.27,0.78]
[1754754873817,69.30312343,180.28,180.27,0.06]
[1754754875000,54.19690786,180.28,180.27,0.78]
[1754754875716,54.19690786,180.28,180.27,0.06]
[1754754876131,48.38517405,180.28,180.27,0.06]
[1754754876311,54.19690786,180.28,180.27,0.06]
[1754754876500,48.38517405,180.28,180.27,0.06]
[1754754876816,54.19690786,180.28,180.27,0.78]
[1754754878705,52.10996215,180.28,180.27,0.78]
[1754754878908,52.10996215,180.28,180.27,0.06]
[1754754882821,52.10996215,180.28,180.27,0.78]
[1754754883424,52.10996215,180.28,180.27,0.06]
[1754754886926,52.77996215,180.28,180.27,0.06]
[1754754887328,57.3581085,180.28,180.27,0.06]
[1754754887519,56.6881085,180.28,180.27,0.06]
[1754754887831,52.10996215,180.28,180.27,0.06]
[1754754889439,56.6881085,180.28,180.27,0.06]
[1754754891519,87.393832,180.28,180.27,0.06]
[1754754891836,82.78533012,180.28,180.27,0.06]
[1754754893844,82.78533012,180.28,180.25,0.06]
[1754754894044,8.33432208,180.26,180.25,0.06]
[1754754894220,51.13256913,180.26,180.25,0.06]
[1754754894753,57.35011156,180.26,180.25,0.06]
[1754754894923,52.74057758,180.26,180.25,0.06]
[1754754895924,52.07057758,180.26,180.25,0.06]
[1754754896130,56.68151601,180.26,180.25,0.06]
[1754754896334,52.07057758,180.26,180.25,0.06]
[1754754897146,56.68166932,180.26,180.25,0.06]
[1754754897847,52.07057758,180.26,180.25,0.06]
[1754754898026,52.74057758,180.26,180.25,0.06]
[1754754898425,52.07057758,180.26,180.25,0.06]
[1754754899448,52.07057758,180.26,180.25,0.77]
[1754754900035,3.65824705,180.26,180.25,0.77]
[1754754900228,3.65824705,180.26,180.25,4.67389171]
[1754754900229,7.38303515,180.26,180.25,4.67389171]
[1754754900431,3.65824705,180.26,180.25,4.67389171]
[1754754900931,7.38303515,180.26,180.25,4.67363939]
[1754754902338,3.7247881,180.26,180.25,4.67363939]
[1754754902654,7.42083117,180.26,180.25,4.67363939]
[1754754905650,12.9683736,180.26,180.25,3.96363939]
[1754754905954,18.26842743,180.26,180.25,3.96363939]
[1754754907363,17.58842743,180.26,180.25,3.96363939]
[1754754907561,12.040885,180.26,180.25,4.67363939]
[1754754907739,7.42083117,180.26,180.25,4.67363939]
[1754754908365,7.42083117,180.26,180.25,3.96363939]
[1754754908548,12.720885,180.26,180.25,3.96363939]
[1754754908748,17.58842743,180.26,180.25,3.96363939]
[1754754909641,17.58842743,180.26,180.25,4.67363939]
[1754754909843,3.69837605,180.26,180.25,4.67363939]
[1754754910048,7.42316415,180.26,180.25,4.67363939]
[1754754910264,3.69837605,180.26,180.25,4.67363939]
[1754754912759,3.69837605,180.26,180.25,10.22148959]
[1754754912972,3.69837605,180.26,180.25,4.67363939]
[1754754914880,7.42316415,180.26,180.25,4.67363939]
[1754754915172,7.42316415,180.26,180.25,3.96363939]
[1754754915376,7.42316415,180.26,180.25,4.67363939]
[1754754916676,9.51772377,180.26,180.25,4.67363939]
[1754754917954,9.51772377,180.26,180.25,3.96363939]
[1754754918154,10.19772377,180.26,180.25,3.96363939]
[1754754918475,9.51772377,180.26,180.25,3.96363939]
[1754754919652,15.7452662,180.26,180.25,3.96363939]
[1754754920278,15.7452662,180.26,180.25,3.96298228]
[1754754922679,20.36823626,180.26,180.25,3.96298228]
[1754754922861,15.7452662,180.26,180.25,3.96298228]
[1754754923257,15.0652662,180.26,180.25,3.96298228]
[1754754923866,20.36823626,180.26,180.25,3.96298228]
[1754754926479,15.7452662,180.26,180.25,3.96298228]
[1754754926679,30.85148177,180.26,180.25,3.96298228]
[1754754926885,15.10621557,180.23,180.21,1e-08]
[1754754927056,212.48203488,180.22,180.21,1e-08]
[1754754927377,225.94569921,180.22,180.21,1e-08]
[1754754927581,79.24569921,180.22,180.21,1e-08]
[1754754928376,14.14569921,180.22,180.21,0.71000001]
[1754754928562,3.69837605,180.22,180.21,6.25908163]
[1754754928759,44.91934772,180.26,180.21,6.25908163]
[1754754928979,3.7047551,180.25,180.22,0.7]
[1754754929187,3.7047551,180.24,180.22,0.7]
[1754754929368,44.91934772,180.27,180.22,0.7]
[1754754929568,3.70548338,180.26,180.22,0.7]
[1754754929770,3.70548338,180.25,180.22,0.7]
[1754754929969,3.70548338,180.24,180.22,0.7]
[1754754930171,44.91934772,180.27,180.22,0.7]
[1754754930492,3.70527234,180.26,180.22,6.24852081]
[1754754930683,3.70527234,180.25,180.23,0.7]
[1754754930884,3.70527234,180.24,180.23,0.7]
[1754754932387,5.81934772,180.28,180.23,12.06781356]
[1754754932693,0.03,180.29,180.24,6.51934772]
[1754754932694,3.70479374,180.27,180.24,6.51934772]
[1754754932879,3.70479374,180.26,180.25,0.7]
[1754754935088,3.70479374,180.26,180.25,6.2478502]
[1754754935282,3.70479374,180.26,180.25,0.7]
[1754754936408,9.52414146,180.26,180.23,0.7]
[1754754936577,5.81934772,180.26,180.23,0.7]
[1754754936893,3.70150192,180.25,180.24,0.7]
[1754754938767,3.70150192,180.25,180.24,6.24815801]
[1754754938978,0.03,180.27,180.24,12.06750573]
[1754754939292,0.03,180.27,180.26,5.81934772]
[1754754939493,0.03,180.27,180.26,20.92556329]
[1754754939700,0.03,180.29,180.26,21.62556329]
[1754754940006,0.03,180.29,180.28,46.92556329]
[1754754940596,0.03,180.29,180.28,47.62556329]
[1754754940798,0.03,180.29,180.28,53.17249029]
[1754754943592,0.03,180.29,180.28,32.246927]
[1754754944074,0.03,180.29,180.28,38.06627472]
[1754754944675,0.03,180.29,180.28,0.7]
[1754754944877,0.03,180.29,180.28,6.246927]
[1754754945503,0.03,180.29,180.28,12.06627472]
[1754754947404,0.03,180.29,180.28,6.246927]
[1754754947607,0.03,180.29,180.28,12.06627472]
[1754754947785,0.03,180.29,180.28,0.7]
[1754754948105,0.03,180.29,180.27,44.62723192]
[1754754948405,0.03,180.29,180.27,45.32723192]
[1754754948793,0.03,180.29,180.27,6.24723192]
[1754754948996,0.03,180.29,180.27,45.30723192]
[1754754950110,0.03,180.29,180.28,0.7]
[1754754951387,0.03,180.29,180.27,44.60723192]
[1754754951588,5.84934772,180.29,180.25,5.81934772]
[1754754951787,0.71,180.28,180.24,39.06]
[1754754951987,5.81934772,180.27,180.24,39.06]
[1754754952213,5.81934772,180.27,180.24,39.76]
[1754754952893,5.81934772,180.27,180.24,45.30803784]
[1754754953095,5.81934772,180.27,180.24,39.76]
[1754754953403,5.81934772,180.27,180.24,45.30814534]
[1754754953925,6.52934772,180.26,180.22,6.30870574]
[1754754954094,6.52934772,180.25,180.22,5.60870574]
[1754754954292,5.81934772,180.25,180.22,5.60870574]
[1754754954488,5.81934772,180.24,180.22,5.60870574]
[1754754955117,5.81934772,180.24,180.22,6.30870574]
[1754754955620,5.81934772,180.25,180.22,6.30870574]
[1754754957124,0.71,180.27,180.22,5.60870574]
[1754754957314,5.5469367,180.28,180.24,5.81934772]
[1754754957315,5.81934772,180.28,180.24,5.81934772]
[1754754957516,5.81934772,180.28,180.25,0.7]
[1754754957826,5.81934772,180.28,180.26,0.7]
[1754754958201,5.81934772,180.28,180.24,39.76]
[1754754958524,0.03,180.29,180.26,5.81934772]
[1754754959026,0.03,180.29,180.27,0.72]
[1754754959511,0.03,180.29,180.26,5.81934772]
[1754754959695,0.03,180.29,180.27,0.72]
[1754754959891,0.03,180.29,180.27,45.59934772]
[1754754960205,0.03,180.29,180.28,5.81934772]
[1754754960411,0.03,180.29,180.28,12.08627472]
[1754754962095,0.03,180.29,180.28,6.266927]
[1754754962913,0.03,180.29,180.28,5.546927]
[1754754963121,0.03,180.29,180.27,39.06]
[1754754963313,0.03,180.29,180.27,39.78]
[1754754963629,0.03,180.29,180.28,6.53934772]
[1754754963991,0.03,180.29,180.28,12.08627472]
[1754754966100,0.03,180.29,180.28,5.546927]
[1754754966900,0.03,180.29,180.28,6.266927]
[1754754967102,0.03,180.29,180.28,12.08627472]
[1754754967910,0.03,180.29,180.28,6.266927]
[1754754970621,0.03,180.29,180.28,12.08627472]
[1754754973827,0.03,180.29,180.28,27.19249029]
[1754754973828,1e-08,180.29,180.28,27.19249029]
[1754754974211,0.03,180.3,180.29,41.10621557]
[1754754974212,1e-08,180.3,180.29,41.10621557]
[1754754974429,1e-08,180.3,180.29,85.96556329]
[1754754974727,1e-08,180.3,180.29,86.68556329]
[1754754975410,1e-08,180.3,180.29,92.23218262]
[1754754975820,1e-08,180.3,180.29,5.54661933]
[1754754976126,1e-08,180.3,180.27,0.72]
[1754754976127,6.53934773,180.3,180.28,39.04]
[1754754976304,6.53934772,180.29,180.28,39.04]
[1754754976920,0.72,180.29,180.28,39.04]
[1754754977121,6.53934772,180.29,180.26,39.04]
[1754754977306,5.81934772,180.29,180.26,39.04]
[1754754977507,0.72,180.29,180.26,39.04]
[1754754977902,0.72,180.28,180.26,39.04]
[1754754978208,0.72000001,180.3,180.26,44.5875291]
[1754754978410,5.81934773,180.3,180.27,0.72]
[1754754978739,6.53934773,180.3,180.26,44.5875291]
[1754754978902,6.53934773,180.3,180.26,45.3075291]
[1754754979100,0.72000001,180.3,180.26,45.3075291]
[1754754979305,5.81934773,180.3,180.27,0.72]
[1754754980326,5.81934773,180.3,180.27,6.26709096]
[1754754981626,1e-08,180.3,180.27,6.26709096]
[1754754981847,5.81934773,180.3,180.27,6.26709096]
[1754754982534,5.81934772,180.28,180.26,39.04]
[1754754982832,1e-08,180.3,180.26,50.40686248]
[1754754982833,0.72000001,180.3,180.26,50.40686248]
[1754754983008,1e-08,180.3,180.27,6.53934772]
[1754754983205,1e-08,180.3,180.28,44.85934772]
[1754754983429,1e-08,180.3,180.29,5.81934772]
[1754754983628,1e-08,180.3,180.28,44.85934772]
[1754754983833,1e-08,180.3,180.28,39.76]
[1754754984212,1e-08,180.3,180.28,39.04]
[1754754984734,1e-08,180.3,180.29,5.54661933]
[1754754985517,1e-08,180.3,180.29,6.26661933]
[1754754986117,1e-08,180.3,180.29,5.54661933]
[1754754987840,1e-08,180.3,180.28,5.546927]
[1754754988015,0.72000001,180.3,180.29,39.04]
[1754754988217,1e-08,180.3,180.29,39.04]
[1754754989365,6.50934773,180.3,180.25,0.06]
[1754754989547,5.81934772,180.26,180.25,0.06]
[1754754990041,0.69,180.28,180.25,0.06]
[1754754990243,5.81934772,180.27,180.25,0.06]
[1754754991240,5.81934772,180.28,180.25,0.06]
[1754754991543,1e-08,180.3,180.25,0.06]
[1754754991544,6.50934772,180.27,180.25,0.06]
[1754754991740,5.81934772,180.27,180.25,0.06]
[1754754992930,6.50934772,180.26,180.25,0.06]
[1754754993322,5.81934772,180.26,180.25,0.06]
[1754754994236,6.50934772,180.26,180.25,0.06]
[1754754996246,5.81934772,180.26,180.25,0.06]
[1754754996855,6.50934772,180.26,180.25,0.06]
[1754754997334,5.81934772,180.27,180.25,0.06]
[1754754998526,0.69000001,180.3,180.25,0.06]
[1754754998748,5.81934772,180.29,180.25,0.06]
[1754754998932,6.50934772,180.29,180.25,0.77]
[1754754999138,6.50934772,180.29,180.26,5.54754243]
[1754754999444,5.81934772,180.29,180.26,5.54754243]
[1754754999650,6.50934772,180.29,180.26,5.54754243]
[1754754999952,5.81934772,180.29,180.26,5.54754243]
[1754755000128,5.81934773,180.3,180.26,45.29754243]
[1754755000329,5.81934772,180.29,180.26,45.29754243]
[1754755000633,6.50934772,180.29,180.26,44.58754243]
[1754755002859,6.50934772,180.28,180.26,44.58754243]
[1754755003237,6.50934772,180.28,180.26,39.04]
[1754755003638,0.69,180.28,180.26,39.04]
[1754755003860,6.50934772,180.28,180.26,39.04]
[1754755005857,0.69,180.28,180.26,39.04]
[1754755006062,6.50934772,180.28,180.26,39.04]
[1754755006655,6.50934772,180.27,180.25,0.06]
[1754755007042,0.69,180.29,180.25,0.06]
[1754755007238,5.81934772,180.27,180.25,0.06]
[1754755007442,5.54646189,180.3,180.25,0.77]
[1754755007644,5.81934772,180.28,180.25,0.77]
[1754755007955,5.81934772,180.28,180.25,6.31782097]
[1754755009051,5.81934772,180.28,180.25,0.77]
[1754755009356,6.50934772,180.28,180.25,0.77]
[1754755009563,5.81934772,180.28,180.25,0.06]
[1754755009746,0.69,180.27,180.25,0.06]
[1754755009945,5.81934772,180.27,180.25,0.06]
[1754755012247,0.69,180.27,180.25,0.06]
[1754755012453,5.81934772,180.26,180.25,0.06]
[1754755012653,0.69,180.27,180.25,0.06]
[1754755012854,6.50934772,180.26,180.25,0.06]
[1754755013458,0.69,180.26,180.25,0.06]
[1754755013764,6.50934772,180.26,180.25,0.06]
[1754755014160,5.81934772,180.26,180.25,0.06]
[1754755014469,6.50934772,180.26,180.25,0.06]
[1754755016971,0.69,180.26,180.25,0.06]
[1754755017290,6.50934772,180.26,180.25,0.06]
[1754755017452,0.69,180.26,180.25,0.06]
[1754755017794,6.50934772,180.26,180.25,0.06]
[1754755018674,5.81934772,180.26,180.25,0.06]
[1754755019388,6.51934772,180.26,180.25,0.06]
[1754755020880,12.06689015,180.26,180.25,0.06]
[1754755030887,5.81934772,180.26,180.25,0.06]
[1754755031390,11.36689015,180.26,180.25,0.06]
[1754755031571,12.06689015,180.26,180.25,0.06]
[1754755033686,16.69486559,180.26,180.25,0.06]
[1754755033886,12.06689015,180.26,180.25,0.06]
[1754755034974,16.69486559,180.26,180.25,0.06]
[1754755035168,27.17310572,180.26,180.25,0.06]
[1754755036487,41.10621557,180.24,180.23,0.06]
[1754755036691,85.94556329,180.24,180.23,0.06]
[1754755036872,86.64556329,180.24,180.23,0.06]
[1754755037901,91.27821688,180.24,180.23,0.06]
[1754755038082,91.27798561,180.24,180.23,0.06]
[1754755038283,96.82614362,180.24,180.23,0.06]
[1754755039298,81.01992805,180.24,180.23,0.06]
[1754755039501,76.38750573,180.24,180.23,0.06]
[1754755040900,77.08750573,180.24,180.23,0.06]
[1754755041683,96.82614362,180.24,180.23,0.06]
[1754755041901,92.1937213,180.24,180.23,0.06]
[1754755042204,96.82208261,180.24,180.23,0.06]
[1754755042786,81.01586704,180.24,180.23,0.06]
[1754755043097,81.01562918,180.24,180.23,0.06]
[1754755043399,76.38750573,180.24,180.23,0.06]
[1754755044979,77.08750573,180.24,180.23,0.06]
[1754755045180,96.82184475,180.24,180.23,0.06]
[1754755045383,96.82148277,180.24,180.23,0.06]
[1754755045999,92.1937213,180.24,180.23,0.06]
[1754755046183,86.37437358,180.24,180.23,0.06]
[1754755046516,92.1937213,180.24,180.23,0.06]
[1754755047613,91.4937213,180.24,180.23,0.06]
[1754755049095,52.4737213,180.24,180.23,0.06]
[1754755049428,91.4937213,180.24,180.23,0.06]
[1754755050208,52.4737213,180.24,180.23,0.06]
[1754755050410,91.4937213,180.24,180.23,0.06]
[1754755050799,92.1637213,180.24,180.23,0.06]
[1754755051110,96.79112532,180.24,180.23,0.06]
[1754755051512,92.35212377,180.24,180.23,0.06]
[1754755051715,96.98309877,180.24,180.23,0.06]
[1754755052510,106.98309877,180.24,180.21,1e-08]
[1754755052708,41.10621557,180.2,180.19,0.06]
[1754755052894,76.65869544,180.2,180.14,0.68]
[1754755053220,31.37364883,180.19,180.15,0.68]
[1754755054315,26.74491101,180.19,180.15,0.68]
[1754755054605,32.29460855,180.19,180.15,0.68]
[1754755054814,58.29460855,180.19,180.15,0.68]
[1754755055016,97.31460855,180.19,180.15,0.68]
[1754755055189,97.98460855,180.19,180.15,0.68]
[1754755055915,102.61334637,180.19,180.09,5.55270804]
[1754755056213,97.98460855,180.19,180.13,0.68]
[1754755056421,102.61334637,180.19,180.13,0.68]
[1754755056610,72.8388524,180.19,180.13,0.68]
[1754755056811,5.81934772,180.14,180.13,0.68]
[1754755057119,44.83934772,180.14,180.13,0.68]
[1754755057604,50.39058564,180.14,180.13,0.68]
[1754755058208,50.39058564,180.14,180.11,0.68]
[1754755058418,5.81934772,180.12,180.07,26.0]
[1754755058599,5.81934772,180.09,180.07,26.0]
[1754755058799,5.81934772,180.09,180.05,5.55395233]
[1754755059022,5.81934772,180.08,180.06,0.68]
[1754755059319,39.02,180.1,180.06,0.68]
[1754755059320,44.83934772,180.1,180.06,0.68]
[1754755060021,44.83934772,180.1,180.09,0.06]
[1754755060425,44.83934772,180.1,180.09,0.74]
[1754755060794,39.02,180.1,180.09,0.74]
[1754755060999,44.83934772,180.1,180.09,0.74]
[1754755062500,50.39181856,180.1,180.09,0.06]
[1754755062702,44.83934772,180.1,180.09,0.06]
[1754755064016,50.39181856,180.1,180.09,0.06]
[1754755064218,5.81934772,180.1,180.09,0.74]
[1754755064427,44.83934772,180.1,180.09,0.06]
[1754755065728,44.83934772,180.1,180.09,0.74]
[1754755066323,44.83934772,180.1,180.09,0.06]
[1754755067514,44.83934772,180.1,180.09,0.74]
[1754755068224,44.83934772,180.1,180.09,0.06]
[1754755068626,5.55127782,180.14,180.09,0.74]
[1754755068817,5.81934772,180.11,180.09,0.74]
[1754755069017,39.04,180.1,180.09,0.74]
[1754755069225,39.04,180.1,180.09,0.06]
[1754755069626,39.04,180.1,180.09,0.74]
[1754755070431,5.81934772,180.11,180.09,0.74]
[1754755070639,39.04,180.1,180.09,0.74]
[1754755072025,39.04,180.1,180.09,6.29277916]
[1754755072838,39.04,180.1,180.09,0.74]
[1754755073730,5.81934772,180.11,180.09,0.74]
[1754755073929,39.04,180.1,180.09,0.74]
[1754755074424,172.7,180.16,180.09,12.1118207]
[1754755074629,39.04,180.15,180.11,5.81934772]
[1754755074828,39.04,180.15,180.12,0.68]
[1754755075548,39.04,180.15,180.13,0.68]
[1754755075727,39.04,180.15,180.14,0.68]
[1754755077831,44.85934772,180.15,180.14,0.68]
[1754755078429,0.67,180.18,180.14,6.23105442]
[1754755078639,5.84934772,180.19,180.15,0.68]
[1754755078841,44.85934772,180.18,180.15,0.68]
[1754755079043,39.04,180.18,180.15,0.68]
[1754755079227,0.03,180.19,180.15,6.49934772]
[1754755079526,39.04,180.18,180.16,0.72]
[1754755079934,39.04,180.18,180.16,6.27043521]
[1754755080136,39.04,180.18,180.16,5.55043521]
[1754755080335,39.04,180.18,180.17,0.72]
[1754755080730,39.04,180.18,180.14,5.81934772]
[1754755080930,39.04,180.18,180.15,0.72]
[1754755081130,39.04,180.18,180.16,0.72]
[1754755081542,6.50934772,180.17,180.12,6.53934772]
[1754755081724,39.02,180.16,180.13,0.72]
[1754755081939,39.02,180.16,180.13,6.27140038]
[1754755082128,39.02,180.16,180.14,0.72]
[1754755083931,5.81934772,180.15,180.12,5.55176484]
[1754755084151,5.81934772,180.15,180.12,6.27176484]
[1754755084455,44.83934772,180.16,180.13,0.72]
[1754755084832,45.52934772,180.16,180.12,5.55176484]
[1754755085032,45.52934772,180.16,180.12,6.27176484]
[1754755085439,45.52934772,180.16,180.13,0.72]
[1754755085638,44.83934772,180.16,180.13,0.72]
[1754755085841,5.81934772,180.15,180.11,0.72]
[1754755086135,39.02,180.14,180.11,0.72]
[1754755086331,44.83934772,180.14,180.11,0.72]
[1754755086532,45.52934772,180.14,180.09,6.33269834]
[1754755086738,5.81934772,180.13,180.1,0.72]
[1754755087350,5.81934772,180.13,180.11,0.72]
[1754755087943,5.81934772,180.13,180.09,6.33269834]
[1754755088142,5.81934772,180.13,180.1,0.72]
[1754755089034,5.81934772,180.12,180.09,0.06]
[1754755089231,5.81934772,180.12,180.09,0.78]
[1754755089444,39.02,180.14,180.1,0.72]
[1754755089642,5.81934772,180.13,180.11,0.72]
[1754755090657,44.83934772,180.14,180.11,0.72]
[1754755090858,39.02,180.14,180.11,0.72]
[1754755091052,44.83934772,180.14,180.11,6.27209873]
[1754755091255,39.02,180.14,180.12,0.72]
[1754755091983,6.50934772,180.17,180.13,0.72]
[1754755092269,39.02,180.17,180.14,5.55123792]
[1754755092572,0.03,180.18,180.15,0.72]
[1754755092945,0.03,180.18,180.16,0.72]
[1754755093439,0.03,180.18,180.15,0.72]
[1754755093852,0.03,180.18,180.14,5.55123792]
[1754755094145,0.03,180.18,180.15,0.72]
[1754755094371,5.84934772,180.18,180.15,0.72]
[1754755094552,5.84934772,180.18,180.15,6.2709276]
[1754755094748,5.84934772,180.18,180.16,0.72]
[1754755095364,5.84934772,180.18,180.14,5.55115799]
[1754755095561,6.53934772,180.18,180.14,5.55115799]
[1754755095759,6.53934772,180.18,180.14,6.27115799]
[1754755096451,5.84934772,180.18,180.14,5.55115799]
[1754755096665,5.84934772,180.18,180.15,0.72]
[1754755097265,5.84934772,180.18,180.15,5.55086215]
[1754755097470,0.03,180.18,180.16,0.72]
[1754755097870,5.84934772,180.18,180.15,5.55086215]
[1754755098377,5.84934772,180.18,180.15,6.27086215]
[1754755100568,5.84934772,180.18,180.16,0.72]
[1754755101273,5.84934772,180.18,180.15,0.72]
[1754755101773,0.03,180.18,180.15,0.72]
[1754755101955,5.84934772,180.18,180.16,0.72]
[1754755102566,5.84934772,180.18,180.14,5.55123792]
[1754755102768,5.84934772,180.18,180.15,0.72]
[1754755103075,6.53934772,180.18,180.15,5.55087041]
[1754755103253,6.53934772,180.18,180.15,6.27087041]
[1754755104566,5.81934772,180.17,180.15,6.27087041]
[1754755105576,0.69,180.16,180.14,5.55123792]
[1754755105884,5.81934772,180.17,180.14,6.27123792]
[1754755106375,5.81934772,180.17,180.15,0.72]
[1754755107179,0.03,180.18,180.15,0.72]
[1754755107488,5.81934772,180.17,180.15,0.72]
[1754755108670,5.84934772,180.18,180.15,6.27089512]
[1754755110074,5.81934772,180.17,180.15,6.27089512]
[1754755110879,5.84934772,180.18,180.15,6.27089512]
[1754755113483,5.81934772,180.17,180.15,6.27089512]
[1754755113781,5.81934772,180.16,180.13,5.55125365]
[1754755114075,5.81934772,180.16,180.14,0.69]
[1754755114884,5.81934772,180.16,180.14,5.55123544]
[1754755115058,6.47934772,180.16,180.14,5.55123544]
[1754755115382,5.81934772,180.16,180.14,6.24123544]
[1754755115877,5.81934772,180.16,180.14,0.69]
[1754755116379,5.81934772,180.16,180.13,5.55150641]
[1754755116576,6.47934772,180.16,180.13,5.55150641]
[1754755116965,5.81934772,180.16,180.14,0.69]
[1754755117473,0.03,180.18,180.15,0.69]
[1754755117665,5.84934772,180.18,180.16,0.69]
[1754755117866,5.81934772,180.17,180.14,0.69]
[1754755118169,5.81934772,180.17,180.15,0.69]
[1754755119072,5.81934772,180.17,180.14,5.55095937]
[1754755119474,5.81934772,180.17,180.14,6.24095937]
[1754755119960,5.84934772,180.18,180.15,0.69]
[1754755120979,5.84934772,180.18,180.16,5.55062166]
[1754755122076,0.03,180.18,180.16,6.24062166]
[1754755122378,0.03,180.18,180.16,0.69]
[1754755123460,5.84934772,180.18,180.14,6.24117731]
[1754755123676,5.84934772,180.18,180.15,0.69]
[1754755123873,5.84934772,180.18,180.13,5.81934772]
[1754755123874,5.81934772,180.17,180.13,6.24148992]
[1754755124183,0.66,180.16,180.13,6.24148992]
[1754755124686,5.81934772,180.17,180.13,6.24148992]
[1754755124889,6.47934772,180.17,180.13,6.24148992]
[1754755125267,6.47934772,180.17,180.14,0.69]
[1754755125590,0.03,180.18,180.14,0.69]
[1754755125809,5.81934772,180.17,180.14,0.69]
[1754755125993,0.03,180.18,180.15,6.50934772]
[1754755126287,0.03,180.18,180.15,0.69]
[1754755126489,0.03,180.18,180.16,0.69]
[1754755126878,0.03,180.18,180.14,0.69]
[1754755127385,0.03,180.18,180.15,0.69]
[1754755128371,4.41734215,180.18,180.14,5.55100257]
[1754755128585,4.41734215,180.18,180.14,6.24100257]
[1754755128786,4.41734215,180.18,180.15,6.24090842]
[1754755128987,3.75734215,180.18,180.15,6.24090842]
[1754755129170,3.75734215,180.18,180.15,0.69]
[1754755129375,4.41734215,180.18,180.15,0.69]
[1754755129889,4.41734215,180.18,180.14,0.69]
[1754755130086,4.38734215,180.17,180.14,0.69]
[1754755131392,4.38734215,180.17,180.13,5.55132561]
[1754755131591,4.38734215,180.17,180.13,6.24132561]
[1754755131789,0.66,180.17,180.13,6.24132561]
[1754755131996,3.75734215,180.18,180.14,6.24122051]
[1754755132204,4.41734215,180.18,180.14,6.24122051]
[1754755133109,4.41734215,180.18,180.15,0.69]
[1754755133403,3.72734215,180.17,180.15,0.69]
[1754755134178,0.03,180.18,180.14,5.55122051]
[1754755134379,0.03,180.18,180.17,3.72734215]
[1754755135208,0.03,180.18,180.17,4.41734215]
[1754755136097,0.03,180.18,180.17,9.96765574]
[1754755136910,0.03,180.18,180.17,12.06158394]
[1754755145311,0.03,180.18,180.17,11.37158394]
[1754755145511,0.03,180.18,180.17,5.55031359]
[1754755146711,0.03,180.18,180.16,5.55062166]
[1754755147200,0.03,180.18,180.15,44.55085521]
[1754755147201,0.6,180.17,180.15,44.55085521]
[1754755148416,6.42127035,180.16,180.12,87.7]
[1754755148587,0.6,180.15,180.12,44.53185431]
[1754755149386,6.42127035,180.15,180.12,44.53185431]
[1754755149591,6.42127035,180.14,180.12,44.53185431]
[1754755149792,6.42127035,180.14,180.11,2.95194051]
[1754755150087,5.82127035,180.12,180.11,0.06]
[1754755151088,6.48127035,180.12,180.11,0.06]
[1754755151286,12.03312466,180.12,180.11,0.06]
[1754755151504,12.03312466,180.12,180.1,0.06]
[1754755151716,6.48127035,180.11,180.1,0.06]
[1754755152093,5.82127035,180.11,180.1,0.06]
[1754755154125,5.82127035,180.13,180.1,0.78]
[1754755154293,0.66,180.14,180.1,0.06]
[1754755154294,5.82127035,180.11,180.1,0.06]
[1754755154717,6.48127035,180.11,180.1,0.06]
[1754755155793,12.03343291,180.11,180.1,0.06]
[1754755156098,6.48127035,180.11,180.1,0.06]